bitfinex/quotes_SOLUSD_20240624
["timestamp","ask_amount","ask_price","bid_price","bid_amount"]
[1719189430416,13.757,128.96,128.88,100.0]
[1719189430586,13.757,128.96,128.91,7.7573]
[1719189430793,6.0025,128.96,128.92,7.7567]
[1719189431219,6.0025,128.96,128.94,7.7551]
[1719189431387,6.0025,128.96,128.93,7.7558]
[1719189431897,6.0025,128.96,128.92,7.9264]
[1719189432102,6.0025,128.96,128.92,7.7566]
[1719189432395,7.7556,128.94,128.89,7.7584]
[1719189432598,6.0025,128.96,128.88,100.17]
[1719189432805,7.7556,128.94,128.89,7.7584]
[1719189433005,7.7559,128.94,128.89,7.7584]
[1719189433622,7.7562,128.93,128.88,7.759]
[1719189433913,7.7549,128.95,128.9,7.7577]
[1719189434109,6.0025,128.96,128.91,7.7568]
[1719189434493,0.77573501,128.92,128.91,7.7568]
[1719189434914,0.77573501,128.92,128.91,107.9268]
[1719189435223,0.77573501,128.92,128.91,108.0968]
[1719189436217,0.77573501,128.92,128.91,8.0968]
[1719189436520,0.77573501,128.92,128.88,19.3975]
[1719189436521,0.77573501,128.92,128.88,100.0]
[1719189436703,0.77573501,128.92,128.89,0.34]
[1719189436887,0.77573501,128.92,128.89,100.34]
[1719189437085,0.77573501,128.92,128.91,107.7573]
[1719189437283,0.77573501,128.92,128.91,274.1206]
[1719189437505,16.4087,129.02,128.99,7.7521]
[1719189437712,6.0821,129.03,129.0,7.7515]
[1719189438211,6.0821,129.03,129.01,7.7513]
[1719189438396,10.0,129.14,129.03,7.7499]
[1719189438397,6.0821,129.07,129.03,7.7499]
[1719189438786,6.0821,129.07,129.04,7.7494]
[1719189438993,15.0685,129.1,129.05,7.7484]
[1719189439290,15.0685,129.1,129.04,7.7493]
[1719189439291,7.7467,129.09,129.04,7.7493]
[1719189439613,7.7467,129.09,129.04,0.17]
[1719189439909,22.8144,129.1,129.04,8.0893]
[1719189440288,7.7467,129.09,129.03,107.7499]
[1719189440495,7.7481,129.07,129.01,7.751]
[1719189440707,7.7481,129.07,129.0,0.34]
[1719189440911,7.7481,129.07,129.01,107.7509]
[1719189441101,7.7481,129.07,129.02,7.7505]
[1719189441489,7.7481,129.07,129.01,107.7511]
[1719189441891,7.7481,129.07,129.02,7.7505]
[1719189442102,7.747,129.09,129.03,100.17]
[1719189442388,7.747,129.09,129.03,107.9199]
[1719189442790,7.748,129.07,129.0,19.3795]
[1719189442986,7.749,129.05,128.97,200.0]
[1719189443192,0.82649677,129.09,128.99,7.7521]
[1719189443398,7.7493,129.05,129.0,0.34]
[1719189443816,7.7495,129.04,128.99,7.7521]
[1719189444025,27.4211,129.08,128.95,200.0]
[1719189444198,7.7529,128.99,128.94,7.7553]
[1719189444509,7.752,129.0,128.94,7.755]
[1719189444817,22.79189677,129.06,128.98,7.7526]
[1719189445027,0.99649677,129.05,128.94,200.0]
[1719189445194,7.7497,129.04,128.96,200.0]
[1719189445394,7.7491,129.05,128.99,7.7521]
[1719189445603,21.9654,129.06,128.98,7.7529]
[1719189445604,7.7497,129.04,128.98,7.7529]
[1719189445803,21.9654,129.06,129.0,7.7515]
[1719189445804,29.7141,129.06,129.0,7.7515]
[1719189446009,29.7138,129.06,129.01,7.7511]
[1719189446195,21.9654,129.06,129.02,7.7507]
[1719189446504,21.9654,129.06,129.01,7.751]
[1719189446710,21.9654,129.06,129.02,7.7507]
[1719189446917,6.5654,129.06,129.02,7.7507]
[1719189447113,6.5654,129.06,129.03,7.75]
[1719189447628,6.5654,129.06,129.02,7.7504]
[1719189448130,6.5654,129.06,129.01,7.751]
[1719189448307,6.5654,129.06,129.0,200.34]
[1719189449201,14.3139,129.06,129.01,7.7513]
[1719189449914,14.314,129.06,129.0,200.17]
[1719189450108,14.314,129.06,129.01,7.9213]
[1719189450307,6.5654,129.06,129.02,0.17]
[1719189451006,7.7466,129.09,129.02,100.0]
[1719189451209,29.7341,129.1,129.03,100.34]
[1719189451413,7.7466,129.09,129.04,7.749]
[1719189451815,7.7466,129.09,129.03,108.0898]
[1719189452016,21.988,129.1,129.06,7.7479]
[1719189452204,10.0,129.21,129.06,7.7479]
[1719189452205,29.4223,129.18,129.08,100.0]
[1719189452417,14.3495,129.18,129.12,7.7446]
[1719189452625,7.7417,129.17,129.12,7.7446]
[1719189453018,6.6079,129.18,129.12,100.0]
[1719189453327,6.6079,129.18,129.13,100.34]
[1719189454031,7.7417,129.23,129.14,154.3735]
[1719189454332,7.7417,129.23,129.14,154.7135]
[1719189454523,1.61339332,129.15,129.14,154.7135]
[1719189457710,1.61339332,129.15,129.14,174.7135]
[1719189459135,1.61339332,129.15,129.11,100.0]
[1719189459317,1.61339332,129.15,129.14,7.7435]
[1719189459839,1.61339332,129.15,129.14,107.7435]
[1719189461041,1.61339332,129.15,129.14,7.7435]
[1719189461205,1.61339332,129.15,129.14,8.0835]
[1719189461406,1.61339332,129.15,129.13,100.0]
[1719189461610,1.61339332,129.15,129.13,107.7436]
[1719189462030,1.61339332,129.15,129.13,100.0]
[1719189462711,1.61339332,129.15,129.13,107.744]
[1719189463521,1.61339332,129.15,129.13,107.7436]
[1719189463728,1.61339332,129.15,129.14,8.0835]
[1719189464107,1.61339332,129.15,129.14,0.17]
[1719189464348,1.61339332,129.15,129.13,107.7437]
[1719189464938,1.61339332,129.15,129.13,100.0]
[1719189465444,1.61339332,129.15,129.13,107.744]
[1719189465735,1.61339332,129.15,129.13,100.0]
[1719189467350,1.61339332,129.15,129.14,0.17]
[1719189467524,1.61339332,129.15,129.14,8.0835]
[1719189468145,1.61339332,129.15,129.14,74.0723]
[1719189468322,9.332e-05,129.15,129.14,94.0723]
[1719189470617,9.332e-05,129.15,129.14,74.0723]
[1719189471049,9.332e-05,129.15,129.14,54.3735]
[1719189471541,9.332e-05,129.15,129.13,100.0]
[1719189471941,9.332e-05,129.15,129.14,7.7435]
[1719189472525,9.332e-05,129.15,129.14,54.3735]
[1719189472830,9.332e-05,129.15,129.14,54.5435]
[1719189473039,9.332e-05,129.15,129.14,54.7135]
[1719189473669,6.583,129.26,129.21,146.63]
[1719189473866,0.8390399,129.28,129.24,107.7371]
[1719189474149,0.8390399,129.28,129.25,100.34]
[1719189474357,0.8390399,129.28,129.26,7.7359]
[1719189474521,0.77363454,129.27,129.25,108.0767]
[1719189475819,0.77363454,129.27,129.26,54.3663]
[1719189476038,0.77363454,129.27,129.26,8.0763]
[1719189476627,0.77363454,129.27,129.26,0.34]
[1719189477026,0.77363454,129.27,129.26,154.7063]
[1719189477430,0.77363454,129.27,129.26,174.0471]
[1719189478045,6.0837,129.35,129.32,107.7323]
[1719189478224,6.0837,129.35,129.33,0.34]
[1719189478635,6.0837,129.35,129.32,100.0]
[1719189478843,6.0837,129.35,129.29,246.63]
[1719189479042,6.0837,129.35,129.3,0.34]
[1719189480330,6.0837,129.35,129.29,100.0]
[1719189481759,6.0837,129.35,129.27,100.0]
[1719189481983,7.7336,129.31,129.27,100.0]
[1719189482281,6.0837,129.35,129.27,107.7356]
[1719189482441,6.0837,129.35,129.31,100.0]
[1719189482634,13.8148,129.35,129.31,100.0]
[1719189482867,6.0837,129.35,129.31,100.0]
[1719189483045,6.0837,129.35,129.32,0.17]
[1719189483650,13.8149,129.35,129.32,0.34]
[1719189483855,13.8149,129.35,129.31,0.34]
[1719189484186,6.0837,129.35,129.3,0.34]
[1719189484379,7.7323,129.33,129.3,0.34]
[1719189484742,7.7323,129.33,129.29,0.34]
[1719189485755,7.7318,129.34,129.29,100.34]
[1719189485964,7.7318,129.34,129.29,108.0744]
[1719189486568,6.0837,129.35,129.31,100.0]
[1719189486860,7.7317,129.34,129.29,108.0743]
[1719189487062,6.0837,129.35,129.33,100.0]
[1719189487455,6.0837,129.35,129.32,100.34]
[1719189487936,6.0837,129.35,129.33,100.34]
[1719189488355,7.7299,129.37,129.33,100.34]
[1719189488555,6.5784,129.38,129.33,100.34]
[1719189488556,6.5784,129.38,129.34,7.7314]
[1719189488855,6.5784,129.38,129.35,0.17]
[1719189488856,14.3078,129.38,129.35,0.17]
[1719189489053,7.7297,129.37,129.33,100.34]
[1719189489471,7.7298,129.37,129.33,100.34]
[1719189490468,7.7304,129.36,129.33,100.34]
[1719189490646,6.5784,129.38,129.33,100.0]
[1719189490846,7.7302,129.37,129.33,100.0]
[1719189491059,7.7297,129.37,129.34,0.17]
[1719189491260,6.5784,129.38,129.33,100.0]
[1719189491469,14.3078,129.38,129.34,0.34]
[1719189491697,7.7298,129.37,129.33,100.0]
[1719189491969,14.3077,129.38,129.34,0.17]
[1719189492172,14.3077,129.38,129.34,0.34]
[1719189492543,7.7299,129.37,129.34,0.34]
[1719189492747,7.7299,129.37,129.32,7.7325]
[1719189493070,7.40489677,129.38,129.28,100.0]
[1719189493266,7.7324,129.33,129.28,107.7347]
[1719189493468,6.5097,129.3,129.24,100.0]
[1719189493772,7.7345,129.29,129.24,107.7373]
[1719189494469,0.77375426,129.25,129.22,107.7382]
[1719189494674,0.77375426,129.25,129.2,207.7396]
[1719189494857,0.77375426,129.25,129.2,107.7396]
[1719189495043,0.77375426,129.25,129.22,146.63]
[1719189495247,0.77375426,129.25,129.24,7.7375]
[1719189495549,0.77375426,129.25,129.24,107.7375]
[1719189495860,0.77375426,129.25,129.24,254.3675]
[1719189496255,0.77375426,129.25,129.24,208.0775]
[1719189496673,0.77375426,129.25,129.24,254.7075]
[1719189496879,0.77375426,129.25,129.24,208.0775]
[1719189497552,0.77375426,129.25,129.24,254.7075]
[1719189497754,0.77375426,129.25,129.24,208.0775]
[1719189500357,0.77375426,129.25,129.24,100.34]
[1719189500667,0.77375426,129.25,129.22,165.9754]
[1719189500668,0.77375426,129.25,129.22,107.7382]
[1719189500978,0.77375426,129.25,129.24,7.7375]
[1719189501373,0.77375426,129.25,129.24,107.7375]
[1719189501768,0.77375426,129.25,129.24,154.3675]
[1719189501968,0.77375426,129.25,129.24,154.5375]
[1719189502173,0.77375426,129.25,129.24,154.7075]
[1719189502378,0.77375426,129.25,129.24,174.7075]
[1719189506274,0.77375426,129.25,129.24,174.3675]
[1719189506466,0.77375426,129.25,129.24,154.3675]
[1719189507657,0.77375426,129.25,129.24,107.7375]
[1719189508159,7.7311,129.35,129.3,100.0]
[1719189508664,15.7055,129.36,129.34,7.731]
[1719189508873,6.3139,129.37,129.35,7.7308]
[1719189509171,6.3139,129.37,129.36,7.7303]
[1719189509483,6.3139,129.37,129.36,0.34]
[1719189510969,6.3139,129.37,129.35,0.34]
[1719189512065,15.0437,129.4,129.36,100.0]
[1719189512584,15.0437,129.4,129.37,0.34]
[1719189512796,22.772,129.4,129.37,0.34]
[1719189512964,7.7283,129.4,129.37,0.34]
[1719189513165,7.2954399,129.41,129.37,0.34]
[1719189513366,7.7282,129.4,129.37,0.34]
[1719189513781,15.0229399,129.41,129.37,0.34]
[1719189514585,0.77297674,129.38,129.37,0.34]
[1719189515464,0.77297674,129.38,129.34,154.3614]
[1719189515670,0.77297674,129.38,129.35,0.34]
[1719189515883,0.77297674,129.38,129.36,100.0]
[1719189516077,0.77297674,129.38,129.37,0.34]
[1719189516276,0.77297674,129.38,129.34,254.3612]
[1719189516587,0.77297674,129.38,129.37,1.54331478]
[1719189517791,0.77297674,129.38,129.35,1.88573526]
[1719189517961,8.50217674,129.38,129.35,1.88573526]
[1719189518784,8.50217674,129.38,129.35,1.54573526]
[1719189519083,0.77297674,129.38,129.35,1.54573526]
[1719189519283,0.77297674,129.38,129.34,107.7315]
[1719189519872,0.77297674,129.38,129.35,7.7308]
[1719189520383,0.77297674,129.38,129.36,0.34]
[1719189520980,8.50207674,129.38,129.34,100.0]
[1719189521482,0.77297674,129.38,129.33,7.9018]
[1719189521713,7.7298,129.37,129.33,0.17]
[1719189522266,7.7312,129.35,129.3,100.0]
[1719189522467,0.77297674,129.38,129.3,107.7339]
[1719189522676,7.731,129.35,129.3,107.7339]
[1719189523288,13.8629,129.34,129.3,100.0]
[1719189523990,6.1313,129.34,129.3,100.0]
[1719189524285,6.4103,129.37,129.3,200.0]
[1719189524489,6.4103,129.37,129.34,100.0]
[1719189524793,0.77297674,129.38,129.34,100.0]
[1719189524794,0.77297674,129.38,129.36,7.7303]
[1719189524995,0.77297674,129.38,129.35,8.0709]
[1719189525180,0.77297674,129.38,129.32,100.0]
[1719189525379,0.77297674,129.38,129.33,0.17]
[1719189525592,7.73,129.37,129.33,0.17]
[1719189526097,7.7304,129.36,129.33,0.17]
[1719189526267,8.50237674,129.38,129.33,8.50992434]
[1719189526471,7.7298,129.37,129.33,0.77792434]
[1719189527574,0.77297674,129.38,129.34,7.7314]
[1719189527788,0.77297674,129.38,129.35,0.94780405]
[1719189528090,0.27297674,129.38,129.36,0.17]
[1719189529212,0.27297674,129.38,129.36,107.9001]
[1719189529381,0.27297674,129.38,129.37,0.17]
[1719189530068,0.27297674,129.38,129.37,7.8997]
[1719189530269,0.27297674,129.38,129.37,8.45977814]
[1719189531083,0.27297674,129.38,129.37,0.39007814]
[1719189531290,0.27297674,129.38,129.35,100.0]
[1719189531491,8.00217674,129.38,129.36,1.54469618]
[1719189531795,7.7309,129.36,129.31,7.7329]
[1719189531992,7.7298,129.37,129.32,107.7323]
[1719189532195,8.00227674,129.38,129.32,100.0]
[1719189532399,7.73,129.37,129.32,107.7324]
[1719189532694,8.00237674,129.38,129.33,7.7321]
[1719189533486,0.27297674,129.38,129.34,200.0]
[1719189533687,0.27297674,129.38,129.35,7.9009]
[1719189533882,0.27297674,129.38,129.36,0.17]
[1719189534101,0.27297674,129.38,129.36,7.9002]
[1719189534590,0.27297674,129.37,129.36,7.9003]
[1719189534790,0.27297674,129.37,129.36,0.34]
[1719189535299,0.27297674,129.37,129.36,254.7003]
[1719189535783,0.27297674,129.37,129.36,274.7003]
[1719189537390,0.27297674,129.37,129.36,254.7003]
[1719189537784,0.27297674,129.37,129.36,100.34]
[1719189537987,0.27297674,129.37,129.36,108.0703]
[1719189538217,0.27297674,129.37,129.36,100.34]
[1719189538376,0.27297674,129.37,129.36,108.0703]
[1719189540396,0.27297674,129.37,129.34,154.3611]
[1719189540589,0.27297674,129.37,129.35,8.0706]
[1719189540796,0.27297674,129.37,129.35,7.7306]
[1719189540979,0.27297674,129.37,129.32,100.0]
[1719189540980,6.47907674,129.37,129.32,100.0]
[1719189541185,7.7304,129.36,129.32,100.0]
[1719189541381,14.20897674,129.37,129.32,107.7324]
[1719189541587,7.7305,129.36,129.31,7.7331]
[1719189541791,6.47907674,129.37,129.32,7.7327]
[1719189541990,14.20887674,129.37,129.32,7.7327]
[1719189542387,14.20887674,129.37,129.33,7.7321]
[1719189542588,6.47907674,129.37,129.34,7.7314]
[1719189542796,6.47907674,129.37,129.35,7.7309]
[1719189542797,0.27297674,129.37,129.35,7.7309]
[1719189542991,0.27297674,129.37,129.34,200.0]
[1719189543200,0.27297674,129.37,129.36,107.7303]
[1719189543504,0.27297674,129.37,129.36,208.0703]
[1719189543709,0.27297674,129.37,129.36,0.17]
[1719189544006,0.27297674,129.37,129.32,154.3622]
[1719189544308,0.27297674,129.37,129.35,7.7308]
[1719189544808,0.27297674,129.37,129.34,7.7312]
[1719189544988,0.27297674,129.37,129.35,0.17]
[1719189545187,0.27297674,129.37,129.34,7.7312]
[1719189545384,0.27297674,129.37,129.33,0.17]
[1719189545385,0.27297674,129.37,129.33,7.7318]
[1719189545592,0.27297674,129.37,129.32,107.7324]
[1719189546002,0.27297674,129.37,129.32,146.63]
[1719189546213,0.27297674,129.37,129.35,100.0]
[1719189546504,0.27297674,129.37,129.36,7.7303]
[1719189546717,0.27297674,129.37,129.36,7.9003]
[1719189546897,0.27297674,129.37,129.36,8.0703]
[1719189547493,0.27297674,129.37,129.33,100.0]
[1719189547700,0.27297674,129.37,129.33,107.9017]
[1719189548195,0.27297674,129.37,129.36,7.7303]
[1719189548403,0.27297674,129.37,129.35,7.7306]
[1719189548609,0.27297674,129.37,129.36,207.7303]
[1719189548915,0.27297674,129.37,129.36,247.2262]
[1719189549087,0.27297674,129.37,129.36,293.8562]
[1719189549288,7.674e-05,129.37,129.36,293.8562]
[1719189549713,7.674e-05,129.37,129.36,294.0262]
[1719189550310,0.8390399,129.41,129.4,273.6778]
[1719189550616,0.8390399,129.41,129.4,274.0178]
[1719189550802,0.8390399,129.41,129.4,294.0178]
[1719189552893,0.8390399,129.41,129.4,194.0178]
[1719189553197,0.8390399,129.41,129.4,174.6979]
[1719189554216,0.8390399,129.41,129.4,174.5279]
[1719189554397,0.8390399,129.41,129.4,254.5279]
[1719189554599,1.61183743,129.41,129.4,254.5279]
[1719189554797,1.61183743,129.41,129.4,254.3579]
[1719189555198,1.61183743,129.41,129.4,107.7279]
[1719189555422,1.61183743,129.41,129.4,274.3579]
[1719189555622,1.61183743,129.41,129.4,293.6778]
[1719189556308,1.61183743,129.41,129.4,293.8478]
[1719189556507,1.61183743,129.41,129.4,294.0178]
[1719189558625,1.61183743,129.41,129.4,154.3579]
[1719189558810,1.61183743,129.41,129.4,7.7279]
[1719189559408,1.61183743,129.41,129.4,107.7279]
[1719189559624,1.61183743,129.41,129.4,173.6778]
[1719189559826,1.61183743,129.41,129.4,127.0478]
[1719189560124,1.61183743,129.41,129.4,127.2178]
[1719189560429,3.743e-05,129.41,129.4,294.0178]
[1719189564423,6.3566,129.5,129.46,100.0]
[1719189564627,6.3566,129.5,129.47,7.7233]
[1719189565227,6.3566,129.5,129.46,7.7241]
[1719189565404,6.3566,129.5,129.43,100.0]
[1719189565601,6.3566,129.5,129.43,119.3152]
[1719189565804,6.3566,129.5,129.43,246.63]
[1719189566007,14.0786,129.5,129.45,7.7247]
[1719189566806,14.0786,129.5,129.46,1.54035349]
[1719189567006,14.0786,129.5,129.45,7.7247]
[1719189567500,7.7226,129.49,129.44,7.8953]
[1719189567704,14.0788,129.5,129.45,7.7249]
[1719189568018,7.7235,129.48,129.43,7.7259]
[1719189568226,7.18309677,129.5,129.41,119.3181]
[1719189568413,7.7227,129.49,129.44,7.7252]
[1719189569126,7.18309677,129.5,129.42,7.7263]
[1719189569311,7.7244,129.46,129.41,7.7273]
[1719189569632,6.3225,129.45,129.41,100.0]
[1719189569929,6.3225,129.45,129.44,7.7255]
[1719189570312,6.3225,129.45,129.43,7.7259]
[1719189570508,6.0382,129.48,129.43,200.0]
[1719189570707,6.0382,129.48,129.46,7.724]
[1719189570909,6.0382,129.48,129.45,7.7247]
[1719189571629,6.0382,129.48,129.46,7.7243]
[1719189572331,6.0382,129.48,129.47,7.7237]
[1719189573319,29.1977,129.53,129.47,200.17]
[1719189573722,29.1977,129.53,129.48,7.7229]
[1719189574427,0.77232005,129.49,129.48,7.7229]
[1719189575524,0.77232005,129.49,129.48,8.0629]
[1719189576142,0.77232005,129.49,129.48,54.6929]
[1719189576339,15.439,129.56,129.53,7.7202]
[1719189577225,15.439,129.56,129.52,7.7205]
[1719189577434,15.439,129.56,129.51,7.7211]
[1719189577910,15.439,129.56,129.5,108.0618]
[1719189578116,15.439,129.56,129.49,7.7223]
[1719189578422,15.439,129.56,129.5,7.7218]
[1719189578825,15.439,129.56,129.49,7.7225]
[1719189579025,15.439,129.56,129.5,7.722]
[1719189579211,15.439,129.56,129.51,7.7213]
[1719189579636,15.439,129.56,129.49,7.722]
[1719189580138,15.439,129.56,129.48,100.0]
[1719189580337,15.439,129.56,129.48,107.7227]
[1719189580734,15.439,129.56,129.48,7.723]
[1719189581139,15.439,129.56,129.49,7.7225]
[1719189581550,7.7203,129.53,129.48,7.723]
[1719189582371,16.26549677,129.56,129.49,100.0]
[1719189582655,8.5588399,129.54,129.49,7.7221]
[1719189582826,0.8390399,129.54,129.48,100.34]
[1719189583333,0.8390399,129.54,129.49,165.9359]
[1719189583645,0.8390399,129.54,129.52,7.7204]
[1719189584256,0.8390399,129.54,129.49,100.0]
[1719189584760,8.5588399,129.54,129.49,107.7223]
[1719189584929,0.8390399,129.54,129.5,7.7219]
[1719189585129,0.8390399,129.54,129.49,107.7223]
[1719189585323,0.8390399,129.54,129.5,7.7219]
[1719189585532,0.8390399,129.54,129.49,7.7225]
[1719189585738,0.8390399,129.54,129.5,7.7219]
[1719189586150,0.8390399,129.54,129.49,7.7223]
[1719189586672,0.8390399,129.54,129.5,100.88375164]
[1719189586838,0.8390399,129.54,129.52,7.7204]
[1719189587037,0.8390399,129.54,129.53,0.71358633]
[1719189587260,0.8390399,129.54,129.53,8.43378633]
[1719189587774,0.8390399,129.54,129.53,7.8902]
[1719189588064,0.8390399,129.54,129.53,108.0602]
[1719189589774,0.8390399,129.54,129.53,127.3607]
[1719189589937,0.8390399,129.54,129.53,192.9215]
[1719189590364,0.8390399,129.54,129.53,190.492]
[1719189590871,0.36191306,129.54,129.53,173.9907]
[1719189591569,0.36191306,129.54,129.52,107.7207]
[1719189591738,0.36191306,129.54,129.53,7.7202]
[1719189591938,0.36191306,129.54,129.51,7.7211]
[1719189592175,0.36191306,129.54,129.52,7.7203]
[1719189592770,0.36191306,129.54,129.49,107.7222]
[1719189593156,0.36191306,129.54,129.5,7.7218]
[1719189593667,0.36191306,129.54,129.49,7.7223]
[1719189594071,0.36191306,129.54,129.5,7.7219]
[1719189594669,0.77220078,129.51,129.5,7.7219]
[1719189595344,0.77220078,129.51,129.5,7.8919]
[1719189596069,0.77220078,129.51,129.5,154.5219]
[1719189596242,0.77220078,129.51,129.5,173.9969]
[1719189596642,0.77220078,129.51,129.5,0.34]
[1719189596870,0.77220078,129.51,129.5,8.062]
[1719189597243,0.77220078,129.51,129.48,7.723]
[1719189597444,0.77220078,129.51,129.47,146.63]
[1719189597676,0.77220078,129.51,129.5,7.722]
[1719189597971,0.77220078,129.51,129.47,146.63]
[1719189598175,0.77220078,129.51,129.49,100.0]
[1719189598471,0.77220078,129.51,129.49,107.7223]
[1719189599446,0.77220078,129.51,129.49,7.7223]
[1719189599674,0.77220078,129.51,129.49,107.7225]
[1719189600974,0.77220078,129.51,129.49,7.7225]
[1719189601176,8.49410078,129.51,129.47,100.0]
[1719189601349,7.20570078,129.51,129.45,100.0]
[1719189601552,7.20570078,129.51,129.47,100.0]
[1719189601971,7.20570078,129.51,129.47,7.7235]
[1719189602169,14.92740078,129.51,129.46,7.7242]
[1719189602350,7.20570078,129.51,129.45,100.0]
[1719189602551,7.20570078,129.51,129.46,100.0]
[1719189602968,0.77220078,129.51,129.48,100.0]
[1719189603180,0.77220078,129.51,129.47,100.0]
[1719189603477,0.77220078,129.51,129.48,7.7228]
[1719189603683,0.77220078,129.51,129.5,207.722]
[1719189603883,0.77220078,129.51,129.5,100.34]
[1719189604067,0.77220078,129.51,129.49,7.8924]
[1719189604380,0.77220078,129.51,129.5,107.892]
[1719189604585,0.77220078,129.51,129.5,108.062]
[1719189604753,0.77220078,129.51,129.5,208.062]
[1719189605782,0.77220078,129.51,129.5,254.692]
[1719189606369,0.77220078,129.51,129.5,108.062]
[1719189606896,0.77220078,129.51,129.5,100.0]
[1719189607197,0.77220078,129.51,129.49,7.7225]
[1719189607478,0.77220078,129.51,129.48,107.723]
[1719189607668,0.77220078,129.51,129.49,7.7225]
[1719189608490,0.77220078,129.51,129.48,107.893]
[1719189608662,0.77220078,129.51,129.48,7.723]
[1719189608859,0.77220078,129.51,129.49,7.7225]
[1719189609474,0.77220078,129.51,129.48,7.723]
[1719189609661,0.77220078,129.51,129.46,146.63]
[1719189609859,0.77220078,129.51,129.47,0.17]
[1719189610070,0.77220078,129.51,129.47,9.37295614]
[1719189610277,0.77220078,129.51,129.47,9.20295614]
[1719189610456,6.79320078,129.51,129.46,7.7242]
[1719189610774,6.79320078,129.51,129.47,7.7237]
[1719189611081,16.6067,129.5,129.45,7.7247]
[1719189611258,16.6067,129.5,129.46,0.40941966]
[1719189611453,16.6067,129.5,129.46,7.7243]
[1719189611657,16.6067,129.5,129.42,146.63]
[1719189611874,7.7234,129.48,129.43,7.7261]
[1719189612085,7.7247,129.46,129.41,7.7269]
[1719189612382,7.7234,129.48,129.43,7.7258]
[1719189612559,6.5965,129.49,129.39,165.9511]
[1719189612759,7.7244,129.46,129.41,7.727]
[1719189613365,7.725,129.45,129.4,7.7277]
[1719189613578,7.7246,129.46,129.41,7.7273]
[1719189613963,15.434,129.47,129.39,100.0]
[1719189614470,7.7251,129.45,129.4,7.7278]
[1719189614778,7.7251,129.45,129.4,7.7275]
[1719189614975,7.7256,129.44,129.39,107.7281]
[1719189615269,7.725,129.45,129.4,7.7277]
[1719189615477,15.434,129.47,129.39,100.0]
[1719189615663,7.7256,129.44,129.39,7.7282]
[1719189615862,7.7251,129.45,129.4,7.7278]
[1719189616281,7.7245,129.46,129.41,7.7272]
[1719189616483,7.725,129.45,129.4,7.7277]
[1719189617067,7.7257,129.44,129.39,7.7284]
[1719189617375,15.434,129.47,129.38,0.17]
[1719189617678,15.434,129.47,129.38,8.069]
[1719189617679,7.7265,129.43,129.38,8.069]
[1719189617884,7.7258,129.44,129.39,7.7285]
[1719189618177,7.7249,129.45,129.4,7.8979]
[1719189618371,15.434,129.47,129.41,100.0]
[1719189618571,15.434,129.47,129.44,7.7255]
[1719189618763,15.434,129.47,129.41,219.3182]
[1719189618963,15.434,129.47,129.42,0.34]
[1719189619262,15.434,129.47,129.42,7.8967]
[1719189619474,15.434,129.47,129.43,7.7259]
[1719189620260,15.434,129.47,129.44,7.7255]
[1719189620582,15.434,129.47,129.43,100.0]
[1719189620583,6.5965,129.49,129.45,7.7247]
[1719189620765,6.5965,129.49,129.43,207.7258]
[1719189621082,6.5965,129.49,129.44,7.8951]
[1719189621279,6.5965,129.49,129.43,100.0]
[1719189621470,6.5965,129.49,129.45,100.0]
[1719189621663,6.5965,129.49,129.45,107.7247]
[1719189622064,6.5965,129.49,129.43,100.0]
[1719189622266,6.5965,129.49,129.41,100.0]
[1719189622487,6.5965,129.49,129.42,7.8964]
[1719189622689,6.5965,129.49,129.43,7.7261]
[1719189622862,7.7234,129.48,129.43,7.7261]
[1719189623063,7.7234,129.48,129.43,107.7261]